[Event "Titled Tuesday Blitz March 01 Early 2022"]
[White "Wong, Yinn Long"]
[Black "Jaferian, Koosha"]
[WhiteFideId "5707684"]
[BlackFideId "12507440"]
[WhiteElo "2055"]
[BlackElo "2027"]
[Result "0-1"]
[Round "05"]
[TimeControl "180+1"]
[Date "2022.03.01"]
[WhiteClock "0:00:07"]
[BlackClock "0:00:05"]

1. Nf3 {[%clk 0:03:00]}  d5 {[%clk 0:02:59]} 2. e3 {[%clk 0:02:59]}  c5 {[%clk 0:02:56]} 3. b3 {[%clk 0:02:58]}  Nc6 {[%clk 0:02:47]} 4. Bb2 {[%clk 0:02:57]}  a6 {[%clk 0:02:47]} 5. d4 {[%clk 0:02:57]}  cxd4 {[%clk 0:02:47]} 6. Nxd4 {[%clk 0:02:57]}  Nf6 {[%clk 0:02:43]} 7. c4 {[%clk 0:02:54]}  e6 {[%clk 0:02:40]} 8. cxd5 {[%clk 0:02:49]}  Nxd4 {[%clk 0:02:34]} 9. Qxd4 {[%clk 0:02:42]}  Nxd5 {[%clk 0:02:24]} 10. Nc3 {[%clk 0:02:33]}  Nxc3 {[%clk 0:02:16]} 11. Qxd8+ {[%clk 0:02:31]}  Kxd8 {[%clk 0:02:16]} 12. Bxc3 {[%clk 0:02:32]}  f6 {[%clk 0:02:08]} 13. Be2 {[%clk 0:02:18]}  Ke7 {[%clk 0:01:59]} 14. O-O-O {[%clk 0:02:13]}  Bd7 {[%clk 0:01:44]} 15. Bf3 {[%clk 0:01:59]}  Rc8 {[%clk 0:01:34]} 16. Kb2 {[%clk 0:02:00]}  Bc6 {[%clk 0:01:23]} 17. Bxc6 {[%clk 0:01:54]}  Rxc6 {[%clk 0:01:17]} 18. Rd3 {[%clk 0:01:54]}  Kf7 {[%clk 0:00:49]} 19. Rd7+ {[%clk 0:01:53]}  Kg6 {[%clk 0:00:50]} 20. Rxb7 {[%clk 0:01:27]}  Bd6 {[%clk 0:00:45]} 21. Rd1 {[%clk 0:01:20]}  Rhc8 {[%clk 0:00:43]} 22. Rd7 {[%clk 0:00:28]}  Rxc3 {[%clk 0:00:38]} 23. R7xd6 {[%clk 0:00:27]}  Rc2+ {[%clk 0:00:39]} 24. Ka3 {[%clk 0:00:27]}  Rxf2 {[%clk 0:00:40]} 25. R1d2 {[%clk 0:00:26]}  Rxd2 {[%clk 0:00:27]} 26. Rxd2 {[%clk 0:00:27]}  Rc6 {[%clk 0:00:27]} 27. Kb4 {[%clk 0:00:23]}  Kf5 {[%clk 0:00:27]} 28. Rd4 {[%clk 0:00:22]}  Rc2 {[%clk 0:00:24]} 29. g4+ {[%clk 0:00:20]}  Ke5 {[%clk 0:00:21]} 30. a4 {[%clk 0:00:21]}  Rxh2 {[%clk 0:00:20]} 31. Ka5 {[%clk 0:00:21]}  Re2 {[%clk 0:00:20]} 32. Kxa6 {[%clk 0:00:14]}  Rxe3 {[%clk 0:00:20]} 33. Rb4 {[%clk 0:00:15]}  f5 {[%clk 0:00:08]} 34. gxf5 {[%clk 0:00:10]}  exf5 {[%clk 0:00:09]} 35. Kb7 {[%clk 0:00:06]}  f4 {[%clk 0:00:09]} 36. a5 {[%clk 0:00:05]}  f3 {[%clk 0:00:09]} 37. Rb5+ {[%clk 0:00:02]}  Ke6 {[%clk 0:00:07]} 38. Rb6+ {[%clk 0:00:03]}  Ke7 {[%clk 0:00:08]} 39. a6 {[%clk 0:00:04]}  f2 {[%clk 0:00:08]} 40. a7 {[%clk 0:00:04]}  f1=Q {[%clk 0:00:09]} 41. a8=Q {[%clk 0:00:04]}  Qf3+ {[%clk 0:00:09]} 42. Rc6 {[%clk 0:00:04]}  Rxb3+ {[%clk 0:00:09]} 43. Kc7 {[%clk 0:00:03]}  Qf4+ {[%clk 0:00:09]} 44. Kc8 {[%clk 0:00:03]}  Qf8+ {[%clk 0:00:07]} 45. Kc7 {[%clk 0:00:04]}  Qxa8 {[%clk 0:00:06]} 46. Re6+ {[%clk 0:00:05]}  Kf7 {[%clk 0:00:05]} 47. Re7+ {[%clk 0:00:06]}  Kf6 {[%clk 0:00:05]} 48. Re6+ {[%clk 0:00:06]}  Kf5 {[%clk 0:00:05]} 49. Re5+ {[%clk 0:00:07]}  Kxe5 {[%clk 0:00:05]} 0-1


[Site "https://www.chess.com"]

[Event "Titled Tuesday Blitz March 01 Early 2022"]
[White "Zanette, Edgard Vinicius"]
[Black "Ooi, Zhi Yang"]
[WhiteFideId "2109263"]
[BlackFideId "5709270"]
[WhiteElo "2182"]
[BlackElo "1802"]
[Result "0-1"]
[Round "05"]
[TimeControl "180+1"]
[Date "2022.03.01"]
[WhiteClock "0:00:19"]
[BlackClock "0:00:50"]

1. e4 {[%clk 0:02:54]}  e5 {[%clk 0:02:59]} 2. Nf3 {[%clk 0:02:54]}  Nc6 {[%clk 0:02:59]} 3. Bb5 {[%clk 0:02:54]}  g6 {[%clk 0:02:59]} 4. O-O {[%clk 0:02:53]}  Bg7 {[%clk 0:03:00]} 5. c3 {[%clk 0:02:53]}  a6 {[%clk 0:02:59]} 6. Ba4 {[%clk 0:02:52]}  Nge7 {[%clk 0:02:59]} 7. d4 {[%clk 0:02:52]}  exd4 {[%clk 0:03:00]} 8. cxd4 {[%clk 0:02:52]}  b5 {[%clk 0:03:00]} 9. Bb3 {[%clk 0:02:51]}  Na5 {[%clk 0:03:01]} 10. Bc2 {[%clk 0:02:49]}  O-O {[%clk 0:03:00]} 11. Bg5 {[%clk 0:02:48]}  d6 {[%clk 0:02:58]} 12. h3 {[%clk 0:02:46]}  h6 {[%clk 0:02:56]} 13. Bf4 {[%clk 0:02:41]}  c5 {[%clk 0:02:55]} 14. dxc5 {[%clk 0:02:39]}  Nc4 {[%clk 0:02:49]} 15. cxd6 {[%clk 0:02:24]}  Nc6 {[%clk 0:02:47]} 16. Nc3 {[%clk 0:02:04]}  Nxb2 {[%clk 0:02:46]} 17. Qe1 {[%clk 0:01:59]}  Nb4 {[%clk 0:02:36]} 18. e5 {[%clk 0:00:43]}  Nxc2 {[%clk 0:02:35]} 19. Qe4 {[%clk 0:00:41]}  Bf5 {[%clk 0:02:33]} 20. Qe2 {[%clk 0:00:38]}  Bd3 {[%clk 0:02:28]} 21. Qd2 {[%clk 0:00:38]}  Nxa1 {[%clk 0:02:25]} 22. Rxa1 {[%clk 0:00:38]}  b4 {[%clk 0:02:12]} 23. Nd5 {[%clk 0:00:38]}  Be4 {[%clk 0:02:06]} 24. Ne7+ {[%clk 0:00:38]}  Kh7 {[%clk 0:02:02]} 25. Qxb2 {[%clk 0:00:39]}  Qxd6 {[%clk 0:02:02]} 26. exd6 {[%clk 0:00:34]}  Bxb2 {[%clk 0:02:01]} 27. Re1 {[%clk 0:00:35]}  f5 {[%clk 0:01:49]} 28. Nd2 {[%clk 0:00:29]}  Bc3 {[%clk 0:01:48]} 29. Re2 {[%clk 0:00:28]}  Bxd2 {[%clk 0:01:37]} 30. Rxd2 {[%clk 0:00:28]}  Rfd8 {[%clk 0:01:31]} 31. f3 {[%clk 0:00:27]}  Bb7 {[%clk 0:01:25]} 32. d7 {[%clk 0:00:27]}  Kg7 {[%clk 0:01:12]} 33. Bc7 {[%clk 0:00:27]}  Kf7 {[%clk 0:01:12]} 34. Bxd8 {[%clk 0:00:28]}  Rxd8 {[%clk 0:01:12]} 35. Nd5 {[%clk 0:00:28]}  Rxd7 {[%clk 0:01:10]} 36. Rb2 {[%clk 0:00:28]}  Bxd5 {[%clk 0:01:10]} 37. Rxb4 {[%clk 0:00:28]}  Rd6 {[%clk 0:01:02]} 38. Rd4 {[%clk 0:00:25]}  g5 {[%clk 0:01:00]} 39. Ra4 {[%clk 0:00:25]}  Kf6 {[%clk 0:00:59]} 40. Rd4 {[%clk 0:00:24]}  f4 {[%clk 0:00:57]} 41. Ra4 {[%clk 0:00:25]}  Be6 {[%clk 0:00:56]} 42. Kh2 {[%clk 0:00:24]}  Bd7 {[%clk 0:00:56]} 43. Ra5 {[%clk 0:00:23]}  Bb5 {[%clk 0:00:56]} 44. Ra3 {[%clk 0:00:22]}  Rd3 {[%clk 0:00:55]} 45. Ra5 {[%clk 0:00:20]}  Rd4 {[%clk 0:00:55]} 46. Ra3 {[%clk 0:00:20]}  Ra4 {[%clk 0:00:56]} 47. Rc3 {[%clk 0:00:20]}  Rxa2 {[%clk 0:00:56]} 48. Rc8 {[%clk 0:00:20]}  Bf1 {[%clk 0:00:51]} 49. Rc2 {[%clk 0:00:19]}  Rxc2 {[%clk 0:00:50]} 0-1


[Site "https://www.chess.com"]

[Event "Titled Tuesday Blitz March 01 Early 2022"]
[White "Zavgorodniy, Sergiy"]
[Black "Lou, Yiping"]
[WhiteFideId "14110148"]
[BlackFideId "8603928"]
[WhiteElo "2420"]
[BlackElo "2412"]
[Result "1/2-1/2"]
[Round "05"]
[TimeControl "180+1"]
[Date "2022.03.01"]
[WhiteClock "0:00:39"]
[BlackClock "0:00:16"]

1. e4 {[%clk 0:03:00]}  e5 {[%clk 0:02:56]} 2. Nf3 {[%clk 0:03:00]}  Nc6 {[%clk 0:02:54]} 3. Bb5 {[%clk 0:03:00]}  a6 {[%clk 0:02:53]} 4. Bxc6 {[%clk 0:02:59]}  dxc6 {[%clk 0:02:52]} 5. O-O {[%clk 0:03:00]}  Qf6 {[%clk 0:02:48]} 6. d3 {[%clk 0:02:58]}  Ne7 {[%clk 0:02:43]} 7. Bg5 {[%clk 0:02:54]}  Qg6 {[%clk 0:02:38]} 8. Bxe7 {[%clk 0:02:47]}  Bxe7 {[%clk 0:02:34]} 9. Nxe5 {[%clk 0:02:40]}  Qf6 {[%clk 0:02:30]} 10. f4 {[%clk 0:02:35]}  Be6 {[%clk 0:02:28]} 11. Nd2 {[%clk 0:02:33]}  g5 {[%clk 0:02:15]} 12. f5 {[%clk 0:02:18]}  Qxe5 {[%clk 0:01:59]} 13. fxe6 {[%clk 0:02:17]}  fxe6 {[%clk 0:01:52]} 14. Qh5+ {[%clk 0:02:14]}  Kd7 {[%clk 0:01:52]} 15. Nc4 {[%clk 0:02:10]}  Qd4+ {[%clk 0:01:52]} 16. Kh1 {[%clk 0:02:09]}  Raf8 {[%clk 0:01:50]} 17. c3 {[%clk 0:02:07]}  Qg7 {[%clk 0:01:45]} 18. d4 {[%clk 0:02:03]}  Bd6 {[%clk 0:01:38]} 19. e5 {[%clk 0:01:58]}  Be7 {[%clk 0:01:37]} 20. Nd2 {[%clk 0:01:44]}  Rxf1+ {[%clk 0:01:35]} 21. Rxf1 {[%clk 0:01:43]}  Rf8 {[%clk 0:01:35]} 22. Qe2 {[%clk 0:01:35]}  c5 {[%clk 0:01:20]} 23. Ne4 {[%clk 0:01:32]}  cxd4 {[%clk 0:01:17]} 24. cxd4 {[%clk 0:01:31]}  Rxf1+ {[%clk 0:01:15]} 25. Qxf1 {[%clk 0:01:30]}  Qg6 {[%clk 0:01:15]} 26. Qe2 {[%clk 0:01:24]}  g4 {[%clk 0:01:12]} 27. g3 {[%clk 0:01:18]}  h5 {[%clk 0:01:10]} 28. Kg2 {[%clk 0:01:18]}  Qf5 {[%clk 0:01:07]} 29. Qd3 {[%clk 0:01:14]}  b6 {[%clk 0:01:01]} 30. a4 {[%clk 0:01:10]}  Kd8 {[%clk 0:00:54]} 31. Qe2 {[%clk 0:01:07]}  h4 {[%clk 0:00:49]} 32. gxh4 {[%clk 0:01:05]}  Bxh4 {[%clk 0:00:50]} 33. b3 {[%clk 0:01:02]}  Qf4 {[%clk 0:00:43]} 34. Qd3 {[%clk 0:00:58]}  Be7 {[%clk 0:00:40]} 35. Qe2 {[%clk 0:00:53]}  b5 {[%clk 0:00:38]} 36. axb5 {[%clk 0:00:52]}  axb5 {[%clk 0:00:38]} 37. Qd3 {[%clk 0:00:52]}  c6 {[%clk 0:00:34]} 38. Qe2 {[%clk 0:00:51]}  Ke8 {[%clk 0:00:34]} 39. Qd3 {[%clk 0:00:50]}  Kf7 {[%clk 0:00:35]} 40. Nf2 {[%clk 0:00:48]}  Kg7 {[%clk 0:00:27]} 41. Qe4 {[%clk 0:00:47]}  Qxe4+ {[%clk 0:00:27]} 42. Nxe4 {[%clk 0:00:47]}  Kg6 {[%clk 0:00:27]} 43. Kg3 {[%clk 0:00:43]}  Kf5 {[%clk 0:00:24]} 44. Nd6+ {[%clk 0:00:43]}  Kg5 {[%clk 0:00:20]} 45. Ne4+ {[%clk 0:00:42]}  Kf5 {[%clk 0:00:18]} 46. Nd6+ {[%clk 0:00:40]}  Kg5 {[%clk 0:00:18]} 47. Ne4+ {[%clk 0:00:39]}  Kf5 {[%clk 0:00:16]} 1/2-1/2


[Site "https://www.chess.com"]

[Event "Titled Tuesday Blitz March 01 Early 2022"]
[White "Zheenbekov, Nurgazy"]
[Black "Goltseva, Ekaterina"]
[WhiteFideId "13800485"]
[BlackFideId "24173770"]
[WhiteElo "1959"]
[BlackElo "2140"]
[Result "1-0"]
[Round "05"]
[TimeControl "180+1"]
[Date "2022.03.01"]
[WhiteClock "0:00:07"]
[BlackClock "0:00:07"]

1. e4 {[%clk 0:02:53]}  e5 {[%clk 0:02:58]} 2. Nf3 {[%clk 0:02:53]}  Nc6 {[%clk 0:02:58]} 3. Bb5 {[%clk 0:02:54]}  a6 {[%clk 0:02:58]} 4. Ba4 {[%clk 0:02:54]}  Nf6 {[%clk 0:02:59]} 5. O-O {[%clk 0:02:54]}  Be7 {[%clk 0:02:59]} 6. Re1 {[%clk 0:02:54]}  b5 {[%clk 0:03:00]} 7. Bb3 {[%clk 0:02:54]}  d6 {[%clk 0:03:01]} 8. c3 {[%clk 0:02:53]}  O-O {[%clk 0:03:01]} 9. h3 {[%clk 0:02:54]}  Nd7 {[%clk 0:03:02]} 10. d4 {[%clk 0:02:53]}  Bf6 {[%clk 0:03:03]} 11. Be3 {[%clk 0:02:49]}  Na5 {[%clk 0:03:03]} 12. Bc2 {[%clk 0:02:49]}  Nc4 {[%clk 0:03:03]} 13. Bc1 {[%clk 0:02:49]}  Bb7 {[%clk 0:03:03]} 14. b3 {[%clk 0:02:49]}  Ncb6 {[%clk 0:03:01]} 15. Bb2 {[%clk 0:02:27]}  exd4 {[%clk 0:02:55]} 16. cxd4 {[%clk 0:02:27]}  c5 {[%clk 0:02:55]} 17. Nbd2 {[%clk 0:02:27]}  cxd4 {[%clk 0:02:52]} 18. Bxd4 {[%clk 0:02:18]}  Ne5 {[%clk 0:02:47]} 19. Nxe5 {[%clk 0:01:58]}  Bxe5 {[%clk 0:02:43]} 20. Nf3 {[%clk 0:01:56]}  Nd7 {[%clk 0:02:31]} 21. Qd2 {[%clk 0:01:49]}  Qf6 {[%clk 0:02:25]} 22. Rad1 {[%clk 0:01:48]}  Rfd8 {[%clk 0:02:24]} 23. b4 {[%clk 0:01:43]}  Bxd4 {[%clk 0:02:18]} 24. Qxd4 {[%clk 0:01:43]}  Ne5 {[%clk 0:02:15]} 25. Nd2 {[%clk 0:01:25]}  d5 {[%clk 0:02:06]} 26. exd5 {[%clk 0:01:15]}  Rxd5 {[%clk 0:02:03]} 27. Qe4 {[%clk 0:01:14]}  Bc6 {[%clk 0:01:20]} 28. Qxh7+ {[%clk 0:01:11]}  Kf8 {[%clk 0:01:19]} 29. Ne4 {[%clk 0:01:09]}  Qh6 {[%clk 0:01:00]} 30. Qxh6 {[%clk 0:01:02]}  gxh6 {[%clk 0:01:01]} 31. Rxd5 {[%clk 0:00:55]}  Bxd5 {[%clk 0:01:01]} 32. Nf6 {[%clk 0:00:56]}  Nf3+ {[%clk 0:00:28]} 33. gxf3 {[%clk 0:00:55]}  Bxf3 {[%clk 0:00:29]} 34. Nd7+ {[%clk 0:00:48]}  Kg7 {[%clk 0:00:28]} 35. Bb3 {[%clk 0:00:47]}  Rc8 {[%clk 0:00:25]} 36. Nc5 {[%clk 0:00:46]}  a5 {[%clk 0:00:24]} 37. a3 {[%clk 0:00:46]}  axb4 {[%clk 0:00:24]} 38. axb4 {[%clk 0:00:46]}  Kf6 {[%clk 0:00:22]} 39. Re3 {[%clk 0:00:39]}  Rg8+ {[%clk 0:00:20]} 40. Kf1 {[%clk 0:00:39]}  Bh5 {[%clk 0:00:15]} 41. Nd7+ {[%clk 0:00:38]}  Kf5 {[%clk 0:00:13]} 42. Re5+ {[%clk 0:00:38]}  Kg6 {[%clk 0:00:13]} 43. Rxh5 {[%clk 0:00:37]}  Rd8 {[%clk 0:00:07]} 44. Rd5 {[%clk 0:00:36]}  Kg7 {[%clk 0:00:08]} 45. f4 {[%clk 0:00:32]}  f5 {[%clk 0:00:08]} 46. Ne5 {[%clk 0:00:27]}  Rc8 {[%clk 0:00:08]} 47. Rxb5 {[%clk 0:00:26]}  Rc1+ {[%clk 0:00:06]} 48. Ke2 {[%clk 0:00:26]}  Rc3 {[%clk 0:00:07]} 49. Be6 {[%clk 0:00:23]}  h5 {[%clk 0:00:07]} 50. Bxf5 {[%clk 0:00:22]}  h4 {[%clk 0:00:08]} 51. Bg4 {[%clk 0:00:22]}  Kf6 {[%clk 0:00:08]} 52. Rb6+ {[%clk 0:00:21]}  Ke7 {[%clk 0:00:08]} 53. b5 {[%clk 0:00:18]}  Kd8 {[%clk 0:00:08]} 54. Rd6+ {[%clk 0:00:16]}  Ke7 {[%clk 0:00:07]} 55. Rd7+ {[%clk 0:00:16]}  Kf8 {[%clk 0:00:06]} 56. b6 {[%clk 0:00:16]}  Rc2+ {[%clk 0:00:05]} 57. Kd3 {[%clk 0:00:16]}  Rb2 {[%clk 0:00:05]} 58. b7 {[%clk 0:00:16]}  Ke8 {[%clk 0:00:06]} 59. Rc7 {[%clk 0:00:15]}  Kd8 {[%clk 0:00:07]} 60. Rc8+ {[%clk 0:00:15]}  Ke7 {[%clk 0:00:07]} 61. b8=Q {[%clk 0:00:14]}  Rxb8 {[%clk 0:00:08]} 62. Rxb8 {[%clk 0:00:14]}  Kf6 {[%clk 0:00:09]} 63. Rb6+ {[%clk 0:00:13]}  Kg7 {[%clk 0:00:09]} 64. Ke4 {[%clk 0:00:13]}  Kh8 {[%clk 0:00:09]} 65. f5 {[%clk 0:00:13]}  Kg7 {[%clk 0:00:07]} 66. Rg6+ {[%clk 0:00:12]}  Kh8 {[%clk 0:00:07]} 67. Rh6+ {[%clk 0:00:09]}  Kg7 {[%clk 0:00:07]} 68. Rxh4 {[%clk 0:00:08]}  Kf6 {[%clk 0:00:07]} 69. Rh6+ {[%clk 0:00:08]}  Kg5 {[%clk 0:00:07]} 70. Rg6+ {[%clk 0:00:08]}  Kh4 {[%clk 0:00:08]} 71. Nf3+ {[%clk 0:00:08]}  Kg3 {[%clk 0:00:07]} 72. h4 {[%clk 0:00:07]} 1-0


[Site "https://www.chess.com"]

[Event "Titled Tuesday Blitz March 01 Early 2022"]
[White "Zhigalko, Sergei"]
[Black "Arabidze, Meri"]
[WhiteFideId "13502956"]
[BlackFideId "13604040"]
[WhiteElo "2662"]
[BlackElo "2329"]
[Result "1-0"]
[Round "05"]
[TimeControl "180+1"]
[Date "2022.03.01"]
[WhiteClock "0:00:25"]
[BlackClock "0:00:02"]

1. e4 {[%clk 0:03:00]}  c5 {[%clk 0:03:00]} 2. Nf3 {[%clk 0:03:00]}  e6 {[%clk 0:03:00]} 3. c3 {[%clk 0:03:00]}  Nf6 {[%clk 0:03:00]} 4. e5 {[%clk 0:03:00]}  Nd5 {[%clk 0:03:00]} 5. Bc4 {[%clk 0:03:01]}  Nc6 {[%clk 0:02:57]} 6. d4 {[%clk 0:03:00]}  cxd4 {[%clk 0:02:57]} 7. cxd4 {[%clk 0:03:01]}  d6 {[%clk 0:02:58]} 8. O-O {[%clk 0:03:01]}  Be7 {[%clk 0:02:57]} 9. Bd2 {[%clk 0:03:01]}  O-O {[%clk 0:02:57]} 10. Nc3 {[%clk 0:03:01]}  Nb6 {[%clk 0:02:49]} 11. Bb3 {[%clk 0:02:59]}  Bd7 {[%clk 0:02:49]} 12. Qe2 {[%clk 0:02:58]}  Rc8 {[%clk 0:02:36]} 13. Rfe1 {[%clk 0:02:56]}  Na5 {[%clk 0:02:29]} 14. Bc2 {[%clk 0:02:55]}  Nac4 {[%clk 0:02:24]} 15. Bc1 {[%clk 0:02:49]}  g6 {[%clk 0:02:07]} 16. Bd3 {[%clk 0:02:40]}  dxe5 {[%clk 0:01:52]} 17. dxe5 {[%clk 0:02:36]}  Bc6 {[%clk 0:01:52]} 18. Bh6 {[%clk 0:02:33]}  Re8 {[%clk 0:01:29]} 19. Rad1 {[%clk 0:02:29]}  Qc7 {[%clk 0:01:26]} 20. Bxc4 {[%clk 0:02:02]}  Bxf3 {[%clk 0:01:25]} 21. Qxf3 {[%clk 0:02:03]}  Nxc4 {[%clk 0:01:25]} 22. Ne4 {[%clk 0:01:48]}  Qxe5 {[%clk 0:00:53]} 23. b3 {[%clk 0:01:42]}  Nb6 {[%clk 0:00:48]} 24. Nd6 {[%clk 0:01:34]}  Qxd6 {[%clk 0:00:38]} 25. Rxd6 {[%clk 0:01:33]}  Bxd6 {[%clk 0:00:39]} 26. Qxb7 {[%clk 0:01:28]}  Rc7 {[%clk 0:00:33]} 27. Qf3 {[%clk 0:01:24]}  Rec8 {[%clk 0:00:31]} 28. h4 {[%clk 0:01:22]}  Nd5 {[%clk 0:00:27]} 29. g3 {[%clk 0:01:10]}  Rc3 {[%clk 0:00:26]} 30. Qg4 {[%clk 0:01:00]}  Rc2 {[%clk 0:00:16]} 31. Rxe6 {[%clk 0:00:48]}  Bc5 {[%clk 0:00:16]} 32. Re2 {[%clk 0:00:35]}  Bb6 {[%clk 0:00:07]} 33. Qd7 {[%clk 0:00:26]}  R2c7 {[%clk 0:00:02]} 34. Qxd5 {[%clk 0:00:25]} 1-0


[Site "https://www.chess.com"]

[Event "Titled Tuesday Blitz March 01 Early 2022"]
[White "Zierk, Steven"]
[Black "Tsvetkov, Andrey"]
[WhiteFideId "2034255"]
[BlackFideId "34139360"]
[WhiteElo "2494"]
[BlackElo "2280"]
[Result "1-0"]
[Round "05"]
[TimeControl "180+1"]
[Date "2022.03.01"]
[WhiteClock "0:00:20"]
[BlackClock "0:00:03"]

1. e4 {[%clk 0:03:00]}  c5 {[%clk 0:02:53]} 2. Nf3 {[%clk 0:03:00]}  d6 {[%clk 0:02:51]} 3. d4 {[%clk 0:02:59]}  cxd4 {[%clk 0:02:52]} 4. Nxd4 {[%clk 0:03:00]}  Nf6 {[%clk 0:02:51]} 5. f3 {[%clk 0:02:59]}  e5 {[%clk 0:02:47]} 6. Nb3 {[%clk 0:02:59]}  a5 {[%clk 0:02:46]} 7. c4 {[%clk 0:02:57]}  Nxe4 {[%clk 0:02:45]} 8. fxe4 {[%clk 0:02:55]}  Qh4+ {[%clk 0:02:46]} 9. Kd2 {[%clk 0:02:55]}  a4 {[%clk 0:02:46]} 10. Nc3 {[%clk 0:02:51]}  axb3 {[%clk 0:02:46]} 11. Qxb3 {[%clk 0:02:52]}  Be7 {[%clk 0:02:40]} 12. g3 {[%clk 0:02:48]}  Qh6+ {[%clk 0:02:12]} 13. Kc2 {[%clk 0:02:48]}  Qg6 {[%clk 0:02:08]} 14. Bd3 {[%clk 0:02:43]}  Nc6 {[%clk 0:02:07]} 15. Be3 {[%clk 0:02:42]}  O-O {[%clk 0:02:06]} 16. Nd5 {[%clk 0:02:34]}  Bg5 {[%clk 0:02:03]} 17. Bb6 {[%clk 0:02:27]}  f5 {[%clk 0:02:01]} 18. Rae1 {[%clk 0:02:13]}  fxe4 {[%clk 0:01:43]} 19. Bxe4 {[%clk 0:02:14]}  Bf5 {[%clk 0:01:43]} 20. Bxf5 {[%clk 0:01:54]}  Qxf5+ {[%clk 0:01:44]} 21. Qd3 {[%clk 0:01:54]}  Qxd3+ {[%clk 0:01:36]} 22. Kxd3 {[%clk 0:01:54]}  Rxa2 {[%clk 0:01:37]} 23. b4 {[%clk 0:01:48]}  Rd2+ {[%clk 0:00:54]} 24. Ke4 {[%clk 0:01:42]}  Nd4 {[%clk 0:00:53]} 25. Rhf1 {[%clk 0:01:29]}  Rxf1 {[%clk 0:00:15]} 26. Rxf1 {[%clk 0:01:29]}  Re2+ {[%clk 0:00:16]} 27. Kd3 {[%clk 0:01:29]}  Rxh2 {[%clk 0:00:17]} 28. Bc7 {[%clk 0:01:25]}  Rd2+ {[%clk 0:00:17]} 29. Ke4 {[%clk 0:01:21]}  Ne2 {[%clk 0:00:17]} 30. Rf3 {[%clk 0:01:14]}  g6 {[%clk 0:00:10]} 31. Bxd6 {[%clk 0:01:09]}  Ng1 {[%clk 0:00:10]} 32. Rf8+ {[%clk 0:00:50]}  Kg7 {[%clk 0:00:10]} 33. Kxe5 {[%clk 0:00:38]}  Re2+ {[%clk 0:00:07]} 34. Kd4 {[%clk 0:00:38]}  Re6 {[%clk 0:00:07]} 35. Bc5 {[%clk 0:00:35]}  b6 {[%clk 0:00:08]} 36. Nxb6 {[%clk 0:00:34]}  Rxb6 {[%clk 0:00:07]} 37. Rf1 {[%clk 0:00:32]}  Ne2+ {[%clk 0:00:05]} 38. Kd3 {[%clk 0:00:33]}  Nxg3 {[%clk 0:00:05]} 39. Rf3 {[%clk 0:00:29]}  Ra6 {[%clk 0:00:02]} 40. b5 {[%clk 0:00:26]}  Ra1 {[%clk 0:00:02]} 41. Bd4+ {[%clk 0:00:25]}  Kh6 {[%clk 0:00:01]} 42. Bxa1 {[%clk 0:00:24]}  Nf5 {[%clk 0:00:02]} 43. Rh3+ {[%clk 0:00:23]}  Bh4 {[%clk 0:00:01]} 44. Rxh4+ {[%clk 0:00:19]}  Nxh4 {[%clk 0:00:02]} 45. b6 {[%clk 0:00:20]}  Nf5 {[%clk 0:00:03]} 46. b7 {[%clk 0:00:20]} 1-0


[Site "https://www.chess.com"]

[Event "Titled Tuesday Blitz March 01 Early 2022"]
[White "Al-Tarboush, Ward"]
[Black "Gubanov, Oleg"]
[WhiteFideId "7601450"]
[BlackFideId "14115115"]
[WhiteElo "2276"]
[BlackElo "2080"]
[Result "1-0"]
[Round "06"]
[TimeControl "180+1"]
[Date "2022.03.01"]
[WhiteClock "0:01:11"]
[BlackClock "0:00:17"]

1. e4 {[%clk 0:03:00]}  Nf6 {[%clk 0:02:59]} 2. e5 {[%clk 0:03:00]}  Nd5 {[%clk 0:02:59]} 3. d4 {[%clk 0:03:01]}  d6 {[%clk 0:02:59]} 4. Nf3 {[%clk 0:03:02]}  dxe5 {[%clk 0:03:00]} 5. dxe5 {[%clk 0:03:03]}  Nc6 {[%clk 0:02:51]} 6. Bc4 {[%clk 0:02:57]}  Ndb4 {[%clk 0:02:32]} 7. Qxd8+ {[%clk 0:02:50]}  Nxd8 {[%clk 0:02:30]} 8. Na3 {[%clk 0:02:50]}  Be6 {[%clk 0:02:25]} 9. Bb5+ {[%clk 0:02:46]}  c6 {[%clk 0:02:24]} 10. Be2 {[%clk 0:02:46]}  Bf5 {[%clk 0:02:05]} 11. Nd4 {[%clk 0:02:46]}  Bg6 {[%clk 0:02:05]} 12. O-O {[%clk 0:02:46]}  e6 {[%clk 0:01:59]} 13. c3 {[%clk 0:02:46]}  Nd3 {[%clk 0:01:55]} 14. Nc4 {[%clk 0:02:46]}  Nxc1 {[%clk 0:01:43]} 15. Raxc1 {[%clk 0:02:47]}  Kd7 {[%clk 0:01:15]} 16. Rfd1 {[%clk 0:02:46]}  Kc7 {[%clk 0:01:15]} 17. Nd6 {[%clk 0:02:46]}  Bxd6 {[%clk 0:01:14]} 18. exd6+ {[%clk 0:02:47]}  Kxd6 {[%clk 0:01:08]} 19. Nf5+ {[%clk 0:02:33]}  Kc7 {[%clk 0:01:07]} 20. Nxg7 {[%clk 0:02:34]}  h5 {[%clk 0:00:54]} 21. Rd4 {[%clk 0:02:28]}  h4 {[%clk 0:00:37]} 22. Rcd1 {[%clk 0:02:27]}  Rc8 {[%clk 0:00:28]} 23. Rd7+ {[%clk 0:02:13]}  Kb6 {[%clk 0:00:29]} 24. h3 {[%clk 0:01:58]}  e5 {[%clk 0:00:28]} 25. Bg4 {[%clk 0:01:57]}  Rb8 {[%clk 0:00:25]} 26. b4 {[%clk 0:01:53]}  a5 {[%clk 0:00:23]} 27. bxa5+ {[%clk 0:01:51]}  Kxa5 {[%clk 0:00:23]} 28. Re7 {[%clk 0:01:50]}  e4 {[%clk 0:00:19]} 29. Re5+ {[%clk 0:01:39]}  Kb6 {[%clk 0:00:18]} 30. Rb1+ {[%clk 0:01:39]}  Kc7 {[%clk 0:00:18]} 31. Ne8+ {[%clk 0:01:39]}  Rxe8 {[%clk 0:00:16]} 32. Rxe8 {[%clk 0:01:40]}  f5 {[%clk 0:00:16]} 33. Re7+ {[%clk 0:01:40]}  Kd6 {[%clk 0:00:16]} 34. Rg7 {[%clk 0:01:41]}  Bf7 {[%clk 0:00:16]} 35. Bxf5 {[%clk 0:01:37]}  Ke5 {[%clk 0:00:17]} 36. Bg4 {[%clk 0:01:28]}  Bxa2 {[%clk 0:00:17]} 37. Rd1 {[%clk 0:01:27]}  Bc4 {[%clk 0:00:16]} 38. Re7+ {[%clk 0:01:26]}  Kf6 {[%clk 0:00:16]} 39. Rxe4 {[%clk 0:01:26]}  b5 {[%clk 0:00:16]} 40. Rd6+ {[%clk 0:01:25]}  Kg7 {[%clk 0:00:16]} 41. Re7+ {[%clk 0:01:25]}  Kf8 {[%clk 0:00:16]} 42. Red7 {[%clk 0:01:21]}  Nf7 {[%clk 0:00:16]} 43. Rxc6 {[%clk 0:01:19]}  b4 {[%clk 0:00:17]} 44. Rxc4 {[%clk 0:01:12]}  b3 {[%clk 0:00:17]} 45. Rb4 {[%clk 0:01:11]} 1-0


[Site "https://www.chess.com"]